fUST/lending_fUST_20240824
["ID","MTS","AMOUNT","RATE_DAILY","PERIOD"]
[335798627,1724495441424,-500.0,0.00013698,2]
[335798628,1724495441435,-500.0,0.00013698,2]
[335798629,1724495441446,-2868.79,0.00013698,2]
[335798630,1724495441456,-500.0,0.00013698,2]
[335798631,1724495441467,-500.0,0.00013698,2]
[335798632,1724495441478,-500.0,0.00013698,2]
[335798633,1724495441487,-554.94,0.00013698,2]
[335798634,1724495441496,-500.0,0.00013698,2]
[335798635,1724495441505,-500.0,0.00013698,2]
[335798636,1724495441514,-500.0,0.00013698,2]
[335798637,1724495441524,-500.0,0.00013698,2]
[335798638,1724495441533,-500.0,0.00013698,2]
[335798639,1724495441542,-582.81026484,0.00013698,2]
[335798640,1724495441552,-586.88,0.00013698,2]
[335798641,1724495441561,-500.0,0.00013698,2]
[335798642,1724495441582,-586.88,0.00013698,2]
[335798643,1724495441591,-500.0,0.00013698,2]
[335798644,1724495441600,-586.88,0.00013698,2]
[335798645,1724495441608,-500.0,0.00013698,2]
[335798646,1724495441618,-500.0,0.00013698,2]
[335798647,1724495441627,-586.88,0.00013698,2]
[335798648,1724495441638,-500.0,0.00013698,2]
[335798649,1724495441647,-586.88,0.00013698,2]
[335798650,1724495441656,-500.0,0.00013698,2]
[335798651,1724495441666,-586.88,0.00013698,2]
[335798652,1724495441675,-500.0,0.00013698,2]
[335798653,1724495441684,-586.88,0.00013698,2]
[335798654,1724495441694,-500.0,0.00013698,2]
[335798655,1724495441703,-500.0,0.00013698,2]
[335798656,1724495441713,-586.88,0.00013698,2]
[335798657,1724495441722,-673.55,0.00013698,2]
[335798658,1724495441732,-500.0,0.00013698,2]
[335798659,1724495441742,-673.55,0.00013698,2]
[335798660,1724495441752,-500.0,0.00013698,2]
[335798661,1724495441763,-586.88,0.00013698,2]
[335798662,1724495441773,-673.55,0.00013698,2]
[335798663,1724495441784,-500.0,0.00013698,2]
[335798664,1724495441794,-586.88,0.00013698,2]
[335798665,1724495441803,-673.55,0.00013698,2]
[335798666,1724495441817,-500.0,0.00013698,2]
[335798667,1724495441828,-586.88,0.00013698,2]
[335798668,1724495441838,-500.0,0.00013698,2]
[335798669,1724495441850,-586.88,0.00013698,2]
[335798670,1724495441861,-673.55,0.00013698,2]
[335798671,1724495441872,-586.88,0.00013698,2]
[335798672,1724495441882,-673.55,0.00013698,2]
[335798673,1724495441891,-151.7,0.00013698,2]
[335798674,1724495441901,-673.55,0.00013698,2]
[335798675,1724495441911,-500.0,0.00013698,2]
[335798676,1724495441920,-586.88,0.00013698,2]
[335798677,1724495441930,-673.55,0.00013698,2]
[335798678,1724495441940,-500.0,0.00013698,2]
[335798679,1724495441949,-586.88,0.00013698,2]
[335798680,1724495441959,-673.55,0.00013698,2]
[335798681,1724495441968,-500.0,0.00013698,2]
[335798682,1724495441978,-586.88,0.00013698,2]
[335798683,1724495441988,-673.55,0.00013698,2]
[335798684,1724495442000,-500.0,0.00013698,2]
[335798685,1724495442014,-500.0,0.00013698,2]
[335798686,1724495442024,-586.88,0.00013698,2]
[335798687,1724495442034,-673.55,0.00013698,2]
[335798688,1724495442044,-500.0,0.00013698,2]
[335798689,1724495442055,-586.88,0.00013698,2]
[335798690,1724495442066,-586.88,0.00013698,2]
[335798691,1724495442075,-673.55,0.00013698,2]
[335798692,1724495442087,-1232.98,0.00013698,2]
[335798693,1724495442096,-586.88,0.00013698,2]
[335798694,1724495442106,-500.0,0.00013698,2]
[335798695,1724495442115,-673.55,0.00013698,2]
[335798696,1724495442125,-586.88,0.00013698,2]
[335798697,1724495442134,-500.0,0.00013698,2]
[335798698,1724495442143,-673.55,0.00013698,2]
[335798699,1724495442153,-586.88,0.00013698,2]
[335798700,1724495442162,-673.55,0.00013698,2]
[335798701,1724495442171,-500.0,0.00013698,2]
[335798702,1724495442181,-586.88,0.00013698,2]
[335798703,1724495442191,-673.55,0.00013698,2]
[335798704,1724495442200,-500.0,0.00013698,2]
[335798705,1724495442209,-1650.66,0.00013698,2]
[335798706,1724495442219,-586.92833301,0.00013698,2]
[335798707,1724495442228,-673.55,0.00013698,2]
[335798708,1724495442237,-500.0,0.00013698,2]
[335798709,1724495442247,-673.55,0.00013698,2]
[335798710,1724495442257,-500.0,0.00013698,2]
[335798711,1724495442266,-673.55,0.00013698,2]
[335798712,1724495442276,-500.0,0.00013698,2]
[335798713,1724495442285,-500.0,0.00013698,2]
[335798714,1724495442294,-673.55,0.00013698,2]
[335798715,1724495442304,-500.0,0.00013698,2]
[335798716,1724495442313,-673.55,0.00013698,2]
[335798717,1724495442322,-500.0,0.00013698,2]
[335798718,1724495442335,-673.55,0.00013698,2]
[335798719,1724495442345,-500.0,0.00013698,2]
[335798720,1724495442356,-673.55,0.00013698,2]
[335798721,1724495442367,-500.0,0.00013698,2]
[335798722,1724495442380,-673.69454486,0.00013698,2]
[335798723,1724495442392,-500.0,0.00013698,2]
[335798724,1724495442403,-500.0,0.00013698,2]
[335798725,1724495442413,-500.0,0.00013698,2]
[335798726,1724495442424,-500.0,0.00013698,2]
[335798727,1724495442436,-500.0,0.00013698,2]
[335798728,1724495442446,-642.83679672,0.00013698,2]
[335798729,1724495442457,-500.0,0.00013698,2]
[335798730,1724495442468,-500.0,0.00013698,2]
[335798731,1724495442477,-500.0,0.00013698,2]
[335798732,1724495442486,-2020.85,0.00013698,2]
[335798733,1724495442496,-500.0,0.00013698,2]
[335798734,1724495442505,-500.0,0.00013698,2]
[335798735,1724495442514,-795.32,0.00013698,2]
[335798736,1724495442524,-500.0,0.00013698,2]
[335798737,1724495442534,-500.77864388,0.00013698,2]
[335798738,1724495442543,-528.3863952,0.00013698,2]
[335798739,1724495442553,-500.0,0.00013698,2]
[335798740,1724495442563,-503.6339414,0.00013698,2]
[335798741,1724495442572,-500.0,0.00013698,2]
[335798742,1724495442582,-500.0,0.00013698,2]
[335798743,1724495442591,-500.0,0.00013698,2]
[335798744,1724495442601,-500.0,0.00013698,2]
[335798745,1724495442610,-850.58,0.00013698,2]
[335798746,1724495442619,-500.0,0.00013698,2]
[335798747,1724495442629,-501.77925544,0.00013698,2]
[335798748,1724495442638,-1081.53,0.00013698,2]
[335798749,1724495442648,-500.0,0.00013698,2]
[335798751,1724495442661,-500.0,0.00013698,2]
[335798753,1724495442673,-523.73,0.00013698,2]
[335798754,1724495442686,-500.0,0.00013698,2]
[335798757,1724495442695,-500.0,0.00013698,2]
[335798759,1724495442704,-500.0,0.00013698,2]
[335798761,1724495442714,-279.85197933,0.00013698,2]
[335798762,1724495442723,-500.0,0.00013698,2]
[335798763,1724495442732,-550.94,0.00013698,2]
[335798764,1724495442741,-500.0,0.00013698,2]
[335798765,1724495442750,-2424.41,0.00013698,2]
[335798766,1724495442760,-1862.51,0.00013698,2]
[335798767,1724495442768,-500.0,0.00013698,2]
[335798768,1724495442778,-507.26586184,0.00013698,2]
[335798769,1724495442788,-529.66,0.00013698,2]
[335798771,1724495442797,-233.35325357,0.00013698,2]
[335798772,1724495442807,-661.21,0.00013698,2]
[335798773,1724495442816,-500.0,0.00013698,2]
[335798774,1724495442825,-500.0,0.00013698,2]
[335798775,1724495442834,-500.0,0.00013698,2]
[335798776,1724495442844,-500.0,0.00013698,2]
[335798777,1724495442854,-689.8,0.00013698,2]
[335798778,1724495442863,-1262.17,0.00013698,2]
[335798779,1724495442879,-500.0,0.00013698,2]
[335798780,1724495442890,-501.19065018,0.00013698,2]
[335798781,1724495442901,-599.98714986,0.00013698,2]
[335798782,1724495442912,-500.0,0.00013698,2]
[335798784,1724495442924,-891.48,0.00013698,2]
[335798785,1724495442934,-160.87517627,0.00013698,2]
[335798786,1724495442944,-500.0,0.00013698,2]
[335798787,1724495442954,-2405.61,0.00013698,2]
[335798788,1724495442963,-500.0,0.00013698,2]
[335798789,1724495442973,-500.0,0.00013698,2]
[335798790,1724495442983,-500.0,0.00013698,2]
[335798791,1724495442992,-500.0,0.00013698,2]
[335798792,1724495443002,-500.0,0.00013698,2]
[335798794,1724495443015,-769.57,0.00013698,2]
[335798795,1724495443025,-772.08,0.00013698,2]
[335798796,1724495443035,-529.51635192,0.00013698,2]
[335798797,1724495443045,-500.0,0.00013698,2]
[335798798,1724495443055,-500.0,0.00013698,2]
[335798799,1724495443066,-501.58971639,0.00013698,2]
[335798800,1724495443076,-501.35155916,0.00013698,2]
[335798801,1724495443089,-690.84,0.00013698,2]
[335798802,1724495443100,-500.0,0.00013698,2]
[335798803,1724495443110,-1049.02,0.00013698,2]
[335798804,1724495443119,-500.0,0.00013698,2]
[335798805,1724495443129,-500.0,0.00013698,2]
[335798806,1724495443139,-500.0,0.00013698,2]
[335798807,1724495443148,-2488.34,0.00013698,2]
[335798808,1724495443158,-1161.27,0.00013698,2]
[335798809,1724495443167,-546.66878442,0.00013698,2]
[335798810,1724495443177,-500.0,0.00013698,2]
[335798811,1724495443187,-500.0,0.00013698,2]
[335798812,1724495443197,-743.91,0.00013698,2]
[335798813,1724495443206,-500.0,0.00013698,2]
[335798814,1724495443216,-500.0,0.00013698,2]
[335798815,1724495443226,-451.02923329,0.00013698,2]
[335798816,1724495443235,-500.0,0.00013698,2]
[335798817,1724495443245,-934.93,0.00013698,2]
[335798818,1724495443254,-500.0,0.00013698,2]
[335798819,1724495443263,-299.67801397,0.00013698,2]
[335798820,1724495443273,-500.0,0.00013698,2]
[335798821,1724495443282,-1053.45,0.00013698,2]
[335798822,1724495443292,-500.0,0.00013698,2]
[335798823,1724495443302,-500.0,0.00013698,2]
[335798824,1724495443312,-1305.2,0.00013698,2]
[335798825,1724495443322,-500.0,0.00013698,2]
[335798826,1724495443332,-500.0,0.00013698,2]
[335798827,1724495443341,-586.53658666,0.00013698,2]
[335798828,1724495443350,-500.0,0.00013698,2]
[335798829,1724495443360,-500.0,0.00013698,2]
[335798830,1724495443369,-500.0,0.00013698,2]
[335798831,1724495443379,-500.0,0.00013698,2]
[335798832,1724495443390,-1499.0,0.00013698,2]
[335798833,1724495443399,-1861.39,0.00013698,2]
[335798834,1724495443409,-1607.52,0.00013698,2]
[335798835,1724495443418,-500.0,0.00013698,2]
[335798836,1724495443427,-883.39,0.00013698,2]
[335798837,1724495443437,-293.91923949,0.00013698,2]
[335798838,1724495443447,-840.89,0.00013698,2]
[335798839,1724495443458,-500.0,0.00013698,2]
[335798840,1724495443468,-500.0,0.00013698,2]
[335798841,1724495443479,-500.0,0.00013698,2]
[335798842,1724495443490,-2185.27,0.00013698,2]
[335798843,1724495443502,-501.23695272,0.00013698,2]
[335798844,1724495443513,-1244.37,0.00013698,2]
[335798845,1724495443524,-500.0,0.00013698,2]
[335798846,1724495443535,-500.0,0.00013698,2]
[335798847,1724495443546,-500.0,0.00013698,2]
[335798848,1724495443557,-511.44324203,0.00013698,2]
[335798849,1724495443568,-311.69,0.00013698,2]
[335798850,1724495443578,-500.0,0.00013698,2]
[335798851,1724495443588,-500.0,0.00013698,2]
[335798852,1724495443598,-612.44072845,0.00013698,2]
[335798853,1724495443608,-504.91863653,0.00013698,2]
[335798854,1724495443617,-500.0,0.00013698,2]
[335798855,1724495443626,-500.0,0.00013698,2]
[335798856,1724495443636,-500.0,0.00013698,2]
[335798857,1724495443646,-500.0,0.00013698,2]
[335798858,1724495443655,-500.0,0.00013698,2]
[335798859,1724495443665,-500.0,0.00013698,2]
[335798860,1724495443675,-500.0,0.00013698,2]
[335798861,1724495443685,-500.0,0.00013698,2]
[335798862,1724495443694,-937.97,0.00013698,2]
[335798863,1724495443704,-500.0,0.00013698,2]
[335798864,1724495443714,-500.0,0.00013698,2]
[335798865,1724495443723,-500.0,0.00013698,2]
[335798866,1724495443732,-500.0,0.00013698,2]
[335798867,1724495443742,-500.0,0.00013698,2]
[335798868,1724495443754,-500.0,0.00013698,2]
[335798869,1724495443764,-500.0,0.00013698,2]
[335798870,1724495443774,-500.0,0.00013698,2]
[335798871,1724495443786,-500.0,0.00013698,2]
[335798872,1724495443797,-642.77,0.00013698,2]
[335798873,1724495443808,-500.0,0.00013698,2]
[335798874,1724495443819,-500.0,0.00013698,2]
[335798875,1724495443829,-447.60060409,0.00013698,2]
[335798876,1724495443839,-500.0,0.00013698,2]
[335798877,1724495443850,-695.4,0.00013698,2]
[335798878,1724495443861,-500.0,0.00013698,2]
[335798879,1724495443871,-575.68528405,0.00013698,2]
[335798880,1724495443880,-500.0,0.00013698,2]
[335798881,1724495443890,-500.0,0.00013698,2]
[335798882,1724495443899,-500.0,0.00013698,2]
[335798883,1724495443909,-500.0,0.00013698,2]
[335798884,1724495443918,-500.0,0.00013698,2]
[335798885,1724495443928,-500.0,0.00013698,2]
[335798886,1724495443944,-500.0,0.00013698,2]
[335798887,1724495443959,-500.0,0.00013698,2]
[335798888,1724495443970,-500.0,0.00013698,2]
[335798889,1724495443980,-500.0,0.00013698,2]
[335798890,1724495443990,-500.0,0.00013698,2]
[335798891,1724495444001,-500.0,0.00013698,2]
[335798892,1724495444015,-500.0,0.00013698,2]
[335798893,1724495444025,-500.0,0.00013698,2]
[335798894,1724495444036,-261.93418463,0.00013698,2]
[335798895,1724495444048,-543.41771865,0.00013698,2]
[335798896,1724495444058,-1298.61,0.00013698,2]
[335798897,1724495444067,-942.71,0.00013698,2]
[335798898,1724495444077,-500.0,0.00013698,2]
[335798899,1724495444089,-876.37,0.00013698,2]
[335798900,1724495444099,-500.0,0.00013698,2]
[335798901,1724495444109,-1371.4,0.00013698,2]
[335798902,1724495444119,-500.0,0.00013698,2]
[335798903,1724495444129,-1360.88,0.00013698,2]
[335798904,1724495444139,-1169.01,0.00013698,2]
[335798905,1724495444149,-500.0,0.00013698,2]
[335798906,1724495444158,-1038.66,0.00013698,2]
[335798907,1724495444168,-500.0,0.00013698,2]
[335798908,1724495444178,-500.0,0.00013698,2]
[335798909,1724495444187,-511.23922017,0.00013698,2]
[335798910,1724495444197,-500.0,0.00013698,2]
[335798911,1724495444206,-2707.52,0.00013698,2]
[335798912,1724495444216,-692.53,0.00013698,2]
[335798913,1724495444226,-842.4,0.00013698,2]
[335798914,1724495444235,-500.0,0.00013698,2]
[335798915,1724495444245,-1233.71,0.00013698,2]
[335798916,1724495444254,-500.0,0.00013698,2]
[335798917,1724495444264,-706.63,0.00013698,2]
[335798918,1724495444274,-500.0,0.00013698,2]
[335798919,1724495444283,-542.60168054,0.00013698,2]
[335798920,1724495444293,-500.0,0.00013698,2]
[335798921,1724495444302,-500.0,0.00013698,2]
[335798922,1724495444312,-1480.85,0.00013698,2]
[335798923,1724495444323,-500.68041564,0.00013698,2]
[335798924,1724495444332,-680.41,0.00013698,2]
[335798925,1724495444342,-500.0,0.00013698,2]
[335798926,1724495444351,-870.94,0.00013698,2]
[335798927,1724495444360,-500.0,0.00013698,2]
[335798928,1724495444370,-564.65068328,0.00013698,2]
[335798929,1724495444380,-372.73170538,0.00013698,2]
[335798930,1724495444389,-500.0,0.00013698,2]
[335798931,1724495444399,-516.71,0.00013698,2]
[335798932,1724495444408,-500.55269522,0.00013698,2]
[335798933,1724495444418,-838.68,0.00013698,2]
[335798934,1724495444427,-500.0,0.00013698,2]
[335798935,1724495444437,-500.0,0.00013698,2]
[335798936,1724495444446,-500.0,0.00013698,2]
[335798937,1724495444455,-500.0,0.00013698,2]
[335798938,1724495444465,-504.06,0.00013698,2]
[335798939,1724495444474,-1500.12,0.00013698,2]
[335798940,1724495444484,-500.0,0.00013698,2]
[335798941,1724495444736,-500.0,0.00013698,2]
[335798942,1724495444747,-1930.64,0.00013698,2]
[335798943,1724495444756,-500.0,0.00013698,2]
[335798944,1724495444766,-500.0,0.00013698,2]
[335798945,1724495444775,-500.0,0.00013698,2]
[335798946,1724495444785,-500.0,0.00013698,2]
[335798947,1724495444794,-500.0,0.00013698,2]
[335798948,1724495444804,-500.0,0.00013698,2]
[335798949,1724495444813,-500.0,0.00013698,2]
[335798950,1724495444827,-500.0,0.00013698,2]
[335798951,1724495444837,-500.0,0.00013698,2]
[335798952,1724495444846,-500.0,0.00013698,2]
[335798953,1724495444855,-500.0,0.00013698,2]
[335798954,1724495444865,-500.0,0.00013698,2]
[335798955,1724495444874,-651.61,0.00013698,2]
[335798956,1724495444884,-1157.53,0.00013698,2]
[335798957,1724495444893,-1305.61,0.00013698,2]
[335798958,1724495444902,-500.0,0.00013698,2]
[335798959,1724495444911,-821.97,0.00013698,2]
[335798960,1724495444920,-500.0,0.00013698,2]
[335798961,1724495444929,-1508.43,0.00013698,2]
[335798962,1724495444942,-675.71,0.00013698,2]
[335798963,1724495444953,-500.0,0.00013698,2]
[335798964,1724495444963,-500.0,0.00013698,2]
[335798965,1724495444972,-500.0,0.00013698,2]
[335798966,1724495444982,-500.0,0.00013698,2]
[335798967,1724495444991,-531.27393272,0.00013698,2]
[335798968,1724495445001,-500.0,0.00013698,2]
[335798969,1724495445014,-500.0,0.00013698,2]
[335798970,1724495445024,-500.0,0.00013698,2]
[335798971,1724495445033,-500.0,0.00013698,2]
[335798972,1724495445042,-500.0,0.00013698,2]
[335798973,1724495445054,-500.0,0.00013698,2]
[335798974,1724495445064,-1444.38,0.00013698,2]
[335798975,1724495445074,-500.0,0.00013698,2]
[335798976,1724495445084,-500.0,0.00013698,2]
[335798977,1724495445094,-511.99630393,0.00013698,2]
[335798978,1724495445104,-500.0,0.00013698,2]
[335798979,1724495445114,-500.0,0.00013698,2]
[335798980,1724495445124,-548.55,0.00013698,2]
[335798981,1724495445133,-500.0,0.00013698,2]
[335798982,1724495445143,-1981.22,0.00013698,2]
[335798983,1724495445152,-350.0,0.00013698,2]
[335798984,1724495445162,-500.0,0.00013698,2]
[335798985,1724495445171,-500.0,0.00013698,2]
[335798986,1724495445180,-500.0,0.00013698,2]
[335798987,1724495445190,-500.0,0.00013698,2]
[335798988,1724495445200,-442.44977797,0.00013698,2]
[335798989,1724495445209,-1094.89,0.00013698,2]
[335798990,1724495445219,-880.86,0.00013698,2]
[335798991,1724495445228,-500.0,0.00013698,2]
[335798992,1724495445238,-775.77,0.00013698,2]
[335798993,1724495445247,-1210.38,0.00013698,2]
[335798994,1724495445257,-500.0,0.00013698,2]
[335798995,1724495445267,-1502.43,0.00013698,2]
[335798996,1724495445276,-500.0,0.00013698,2]
[335798997,1724495445285,-589.03,0.00013698,2]
[335798998,1724495445295,-500.0,0.00013698,2]
[335798999,1724495445304,-1124.13,0.00013698,2]
[335799000,1724495445313,-717.87,0.00013698,2]
[335799001,1724495445324,-500.0,0.00013698,2]
[335799002,1724495445334,-606.47,0.00013698,2]
[335799003,1724495445343,-500.0,0.00013698,2]
[335799004,1724495445352,-506.37907937,0.00013698,2]
[335799005,1724495445361,-726.98,0.00013698,2]
[335799006,1724495445371,-500.0,0.00013698,2]
[335799007,1724495445381,-501.64568335,0.00013698,2]
[335799008,1724495445392,-681.98,0.00013698,2]
[335799009,1724495445402,-580.92,0.00013698,2]
[335799010,1724495445412,-1223.2,0.00013698,2]
[335799011,1724495445421,-500.0,0.00013698,2]
[335799012,1724495445431,-500.0,0.00013698,2]
[335799013,1724495445440,-500.0,0.00013698,2]
[335799014,1724495445449,-500.0,0.00013698,2]
[335799015,1724495445459,-563.64,0.00013698,2]
[335799016,1724495445468,-639.12,0.00013698,2]
[335799017,1724495445479,-1032.86,0.00013698,2]
[335799018,1724495445490,-519.26554519,0.00013698,2]
[335799019,1724495445500,-500.0,0.00013698,2]
[335799020,1724495445510,-986.81,0.00013698,2]
[335799021,1724495445523,-500.0,0.00013698,2]
[335799022,1724495445536,-500.0,0.00013698,2]
[335799023,1724495445546,-705.95,0.00013698,2]
[335799024,1724495445558,-500.0,0.00013698,2]
[335799025,1724495445571,-611.59,0.00013698,2]
[335799026,1724495445581,-500.54700037,0.00013698,2]
[335799027,1724495445591,-500.0,0.00013698,2]
[335799028,1724495445601,-500.0,0.00013698,2]
[335799029,1724495445610,-622.37,0.00013698,2]
[335799030,1724495445620,-500.0,0.00013698,2]
[335799031,1724495445629,-500.0,0.00013698,2]
[335799032,1724495445639,-728.33,0.00013698,2]
[335799033,1724495445649,-536.71473658,0.00013698,2]
[335799034,1724495445658,-502.17279069,0.00013698,2]
[335799036,1724495445668,-500.0,0.00013698,2]
[335799038,1724495445678,-500.0,0.00013698,2]
[335799040,1724495445688,-1201.46,0.00013698,2]
[335799041,1724495445697,-1000.0,0.00013698,2]
[335799042,1724495445706,-1745.55,0.00013698,2]
[335799043,1724495445717,-1210.89,0.00013698,2]
[335799044,1724495445726,-502.28746438,0.00013698,2]
[335799045,1724495445735,-500.0,0.00013698,2]
[335799046,1724495445745,-500.0,0.00013698,2]
[335799048,1724495445755,-508.02996767,0.00013698,2]
[335799049,1724495445764,-511.473911,0.00013698,2]
[335799051,1724495445774,-500.0,0.00013698,2]
[335799053,1724495445783,-500.0,0.00013698,2]
[335799055,1724495445793,-1273.41,0.00013698,2]
[335799056,1724495445802,-500.0,0.00013698,2]
[335799057,1724495445813,-567.57,0.00013698,2]
[335799058,1724495445823,-904.46,0.00013698,2]
[335799059,1724495445832,-617.55,0.00013698,2]
[335799060,1724495445842,-500.0,0.00013698,2]
[335799062,1724495445863,-503.69866884,0.00013698,2]
[335799064,1724495445873,-1524.4,0.00013698,2]
[335799066,1724495445883,-826.3,0.00013698,2]
[335799068,1724495445894,-500.0,0.00013698,2]
[335799069,1724495445905,-1628.83,0.00013698,2]
[335799070,1724495445916,-1576.4,0.00013698,2]
[335799071,1724495445926,-286.92579361,0.00013698,2]
[335799072,1724495445938,-822.67,0.00013698,2]
[335799073,1724495445950,-500.0,0.00013698,2]
[335799074,1724495445961,-6830.25,0.00013698,2]
[335799076,1724495445972,-1964.25,0.00013698,2]
[335799077,1724495445982,-500.0,0.00013698,2]
[335799078,1724495445992,-1111.0,0.00013698,2]
[335799079,1724495446002,-3569.12,0.00013698,2]
[335799080,1724495446018,-500.0,0.00013698,2]
[335799081,1724495446028,-500.0,0.00013698,2]
[335799082,1724495446039,-500.0,0.00013698,2]
[335799083,1724495446051,-500.0,0.00013698,2]
[335799085,1724495446061,-864.26,0.00013698,2]
[335799086,1724495446073,-500.0,0.00013698,2]
[335799087,1724495446084,-500.0,0.00013698,2]
[335799088,1724495446095,-500.0,0.00013698,2]
[335799089,1724495446105,-500.0,0.00013698,2]
[335799090,1724495446115,-501.19817858,0.00013698,2]
[335799091,1724495446124,-1175.05,0.00013698,2]
[335799092,1724495446134,-500.0,0.00013698,2]
[335799093,1724495446145,-500.0,0.00013698,2]
[335799094,1724495446155,-500.0,0.00013698,2]
[335799095,1724495446166,-500.0,0.00013698,2]
[335799096,1724495446176,-500.0,0.00013698,2]
[335799097,1724495446187,-500.0,0.00013698,2]
[335799098,1724495446198,-500.0,0.00013698,2]
[335799099,1724495446209,-500.0,0.00013698,2]
[335799100,1724495446219,-500.0,0.00013698,2]
[335799101,1724495446231,-500.0,0.00013698,2]
[335799102,1724495446241,-362.26165918,0.00013698,2]
[335799103,1724495446251,-1731.69,0.00013698,2]
[335799104,1724495446261,-713.17,0.00013698,2]
[335799105,1724495446271,-500.0,0.00013698,2]
[335799106,1724495446281,-2019.18,0.00013698,2]
[335799107,1724495446291,-500.0,0.00013698,2]
[335799108,1724495446301,-500.0,0.00013698,2]
[335799109,1724495446311,-2324.699907,0.00013698,2]
[335799110,1724495446322,-2324.699907,0.00013698,2]
[335799111,1724495446332,-2324.699907,0.00013698,2]
[335799112,1724495446342,-500.0,0.00013698,2]
[335799113,1724495446352,-2324.699907,0.00013698,2]
[335799114,1724495446362,-8017.24,0.00013698,2]
[335799115,1724495446372,-664.43,0.00013698,2]
[335799116,1724495446381,-8017.24,0.00013698,2]
[335799117,1724495446391,-500.0,0.00013698,2]
[335799118,1724495446400,-8017.24,0.00013698,2]
[335799119,1724495446410,-2036.61,0.00013698,2]
[335799120,1724495446420,-8017.24,0.00013698,2]
[335799121,1724495446430,-3594.17099258,0.00013698,2]
[335799122,1724495446837,-4423.06900742,0.00013698,2]
[335799123,1724495446847,-8017.24,0.00013698,2]
[335799124,1724495446856,-500.0,0.00013698,2]
[335799125,1724495446866,-6724.78721891,0.00013698,2]
[335799126,1724495446967,-1292.45278109,0.00013698,2]
[335799127,1724495446979,-1690.79346334,0.00013698,2]
[335799128,1724495447003,-3169.34334981,0.00013698,2]
[335799129,1724495447209,-3157.10318685,0.00013698,2]
[335799130,1724495447218,-2324.699907,0.00013698,2]
[335799131,1724495447228,-8017.24,0.00013698,2]
[335799132,1724495447238,-658.33332807,0.00013698,2]
[335799133,1724495447250,-1666.36657893,0.00013698,2]
[335799134,1724495447259,-5707.30414617,0.00013698,2]
[335799135,1724495447282,-2309.93585383,0.00013698,2]
[335799136,1724495447292,-2324.699907,0.00013698,2]
[335799137,1724495447301,-2435.29,0.00013698,2]
[335799138,1724495447310,-8017.24,0.00013698,2]
[335799139,1724495447320,-2324.699907,0.00013698,2]
[335799140,1724495447329,-8017.24,0.00013698,2]
[335799141,1724495447339,-8017.24,0.00013698,2]
[335799142,1724495447350,-8017.24,0.00013698,2]
[335799143,1724495447359,-8017.24,0.00013698,2]
[335799144,1724495447368,-8017.24,0.00013698,2]
[335799145,1724495447378,-8017.24,0.00013698,2]
[335799146,1724495447387,-8017.24,0.00013698,2]
[335799147,1724495447397,-8017.24,0.00013698,2]
[335799148,1724495447406,-8017.24,0.00013698,2]